[Event "Titled Tuesday Blitz October 31 Late 2023"]
[White "Souleidis, Georgios"]
[Black "Vifleemskaia, Svetlana"]
[WhiteFideId "4206827"]
[BlackFideId "4129490"]
[WhiteElo "2575"]
[BlackElo "2298"]
[Result "1-0"]
[Round "9"]
[TimeControl "180+1"]
[Date "2023.10.31"]
[WhiteClock "0:00:07"]
[BlackClock "0:00:00"]
[Board "83"]

1. e4 {[%clk 0:03:00]}  e5 {[%clk 0:02:42]} 2. Nc3 {[%clk 0:03:00]}  Nf6 {[%clk 0:02:38]} 3. d4 {[%clk 0:03:00]}  exd4 {[%clk 0:02:31]} 4. Qxd4 {[%clk 0:03:01]}  Nc6 {[%clk 0:02:30]} 5. Qd3 {[%clk 0:03:01]}  Bb4 {[%clk 0:02:25]} 6. Bd2 {[%clk 0:03:00]}  O-O {[%clk 0:02:16]} 7. O-O-O {[%clk 0:03:00]}  Qe7 {[%clk 0:02:11]} 8. Nge2 {[%clk 0:02:43]}  Ne5 {[%clk 0:01:57]} 9. Qg3 {[%clk 0:02:39]}  Nc4 {[%clk 0:01:50]} 10. Bg5 {[%clk 0:01:35]}  Bd6 {[%clk 0:01:31]} 11. Qh4 {[%clk 0:00:39]}  h6 {[%clk 0:01:25]} 12. Nd5 {[%clk 0:00:32]}  Qe5 {[%clk 0:01:17]} 13. Bxf6 {[%clk 0:00:27]}  gxf6 {[%clk 0:01:14]} 14. Qxf6 {[%clk 0:00:26]}  Qxf6 {[%clk 0:01:08]} 15. Nxf6+ {[%clk 0:00:26]}  Kg7 {[%clk 0:01:08]} 16. Nh5+ {[%clk 0:00:22]}  Kh8 {[%clk 0:01:00]} 17. Nc3 {[%clk 0:00:19]}  Nb6 {[%clk 0:00:52]} 18. f4 {[%clk 0:00:19]}  Be7 {[%clk 0:00:38]} 19. Bd3 {[%clk 0:00:16]}  d6 {[%clk 0:00:34]} 20. h3 {[%clk 0:00:17]}  Be6 {[%clk 0:00:31]} 21. g4 {[%clk 0:00:15]}  Bh4 {[%clk 0:00:21]} 22. Kb1 {[%clk 0:00:14]}  Bc4 {[%clk 0:00:18]} 23. Rhf1 {[%clk 0:00:11]}  Bxd3 {[%clk 0:00:16]} 24. cxd3 {[%clk 0:00:11]}  c6 {[%clk 0:00:16]} 25. b3 {[%clk 0:00:11]}  Rae8 {[%clk 0:00:15]} 26. Kc2 {[%clk 0:00:09]}  Nd7 {[%clk 0:00:15]} 27. Ne2 {[%clk 0:00:07]}  Nc5 {[%clk 0:00:14]} 28. Nc3 {[%clk 0:00:05]}  b5 {[%clk 0:00:12]} 29. b4 {[%clk 0:00:05]}  Nd7 {[%clk 0:00:11]} 30. Kb3 {[%clk 0:00:03]}  Nb6 {[%clk 0:00:11]} 31. Rf3 {[%clk 0:00:03]}  Be7 {[%clk 0:00:07]} 32. f5 {[%clk 0:00:03]}  f6 {[%clk 0:00:07]} 33. Nf4 {[%clk 0:00:03]}  Rg8 {[%clk 0:00:06]} 34. Ng6+ {[%clk 0:00:03]}  Kh7 {[%clk 0:00:06]} 35. h4 {[%clk 0:00:03]}  Rg7 {[%clk 0:00:06]} 36. h5 {[%clk 0:00:04]}  Bf8 {[%clk 0:00:06]} 37. Ne2 {[%clk 0:00:04]}  Rd7 {[%clk 0:00:06]} 38. Nef4 {[%clk 0:00:04]}  Bg7 {[%clk 0:00:05]} 39. Ne6 {[%clk 0:00:04]}  Rde7 {[%clk 0:00:04]} 40. Rff1 {[%clk 0:00:05]}  Rxe6 {[%clk 0:00:04]} 41. fxe6 {[%clk 0:00:05]}  Rxe6 {[%clk 0:00:05]} 42. Nh4 {[%clk 0:00:05]}  Re5 {[%clk 0:00:05]} 43. Nf5 {[%clk 0:00:06]}  Re6 {[%clk 0:00:05]} 44. Rfe1 {[%clk 0:00:06]}  Nd7 {[%clk 0:00:05]} 45. d4 {[%clk 0:00:07]}  Nb6 {[%clk 0:00:05]} 46. a3 {[%clk 0:00:07]}  Nc4 {[%clk 0:00:04]} 47. Re2 {[%clk 0:00:07]}  Bf8 {[%clk 0:00:05]} 48. Rde1 {[%clk 0:00:07]}  Kg8 {[%clk 0:00:05]} 49. Nh4 {[%clk 0:00:06]}  Kf7 {[%clk 0:00:05]} 50. Ng6 {[%clk 0:00:07]}  Bg7 {[%clk 0:00:05]} 51. Nh4 {[%clk 0:00:07]}  Kg8 {[%clk 0:00:05]} 52. Nf5 {[%clk 0:00:08]}  Kf7 {[%clk 0:00:06]} 53. a4 {[%clk 0:00:08]}  a6 {[%clk 0:00:05]} 54. axb5 {[%clk 0:00:08]}  axb5 {[%clk 0:00:06]} 55. Ra1 {[%clk 0:00:08]}  Kg8 {[%clk 0:00:05]} 56. Ra8+ {[%clk 0:00:08]}  Bf8 {[%clk 0:00:05]} 57. Ra7 {[%clk 0:00:07]}  Re8 {[%clk 0:00:04]} 58. Kc3 {[%clk 0:00:07]}  Re6 {[%clk 0:00:04]} 59. Kd3 {[%clk 0:00:07]}  d5 {[%clk 0:00:04]} 60. e5 {[%clk 0:00:06]}  fxe5 {[%clk 0:00:03]} 61. dxe5 {[%clk 0:00:07]}  Nxe5+ {[%clk 0:00:04]} 62. Kc2 {[%clk 0:00:07]}  Re8 {[%clk 0:00:00]} 63. Nd4 {[%clk 0:00:07]} 1-0


[Site "https://www.chess.com"]

[Event "Titled Tuesday Blitz October 31 Late 2023"]
[White "Martin Carmona, Gaston Manuel"]
[Black "Rose, Felix"]
[WhiteFideId "22284567"]
[BlackFideId "5105722"]
[WhiteElo "2545"]
[BlackElo "2347"]
[Result "1-0"]
[Round "9"]
[TimeControl "180+1"]
[Date "2023.10.31"]
[WhiteClock "0:01:13"]
[BlackClock "0:00:00"]
[Board "86"]

1. Nf3 {[%clk 0:03:00]}  d5 {[%clk 0:02:58]} 2. d4 {[%clk 0:02:59]}  Nf6 {[%clk 0:02:58]} 3. c4 {[%clk 0:02:59]}  e6 {[%clk 0:02:58]} 4. Nbd2 {[%clk 0:02:57]}  Be7 {[%clk 0:02:57]} 5. g3 {[%clk 0:02:56]}  O-O {[%clk 0:02:57]} 6. Bg2 {[%clk 0:02:56]}  c5 {[%clk 0:02:53]} 7. cxd5 {[%clk 0:02:56]}  Nxd5 {[%clk 0:02:50]} 8. O-O {[%clk 0:02:55]}  cxd4 {[%clk 0:02:50]} 9. Nxd4 {[%clk 0:02:56]}  Nf6 {[%clk 0:02:46]} 10. Nc4 {[%clk 0:02:54]}  Qc7 {[%clk 0:02:41]} 11. b3 {[%clk 0:02:42]}  Rd8 {[%clk 0:02:32]} 12. Bf4 {[%clk 0:02:11]}  Qc5 {[%clk 0:02:17]} 13. Be3 {[%clk 0:02:10]}  e5 {[%clk 0:01:18]} 14. Ne6 {[%clk 0:01:58]}  Rxd1 {[%clk 0:01:18]} 15. Bxc5 {[%clk 0:01:56]}  Rxf1+ {[%clk 0:01:15]} 16. Kxf1 {[%clk 0:01:49]}  Bxc5 {[%clk 0:01:01]} 17. Nxc5 {[%clk 0:01:50]}  Nc6 {[%clk 0:00:48]} 18. Bxc6 {[%clk 0:01:48]}  bxc6 {[%clk 0:00:48]} 19. Nxe5 {[%clk 0:01:49]}  Bh3+ {[%clk 0:00:40]} 20. Ke1 {[%clk 0:01:49]}  Kf8 {[%clk 0:00:18]} 21. Rc1 {[%clk 0:01:47]}  Re8 {[%clk 0:00:14]} 22. Ncd3 {[%clk 0:01:46]}  Ng4 {[%clk 0:00:07]} 23. Nxg4 {[%clk 0:01:42]}  Bxg4 {[%clk 0:00:08]} 24. Rc2 {[%clk 0:01:43]}  Re6 {[%clk 0:00:06]} 25. Nf4 {[%clk 0:01:33]}  Rd6 {[%clk 0:00:05]} 26. f3 {[%clk 0:01:33]}  Bd7 {[%clk 0:00:06]} 27. Rd2 {[%clk 0:01:30]}  Rxd2 {[%clk 0:00:04]} 28. Kxd2 {[%clk 0:01:31]}  Ke7 {[%clk 0:00:05]} 29. Kc3 {[%clk 0:01:31]}  Kd6 {[%clk 0:00:06]} 30. Nd3 {[%clk 0:01:23]}  a5 {[%clk 0:00:06]} 31. Kd4 {[%clk 0:01:23]}  f6 {[%clk 0:00:04]} 32. e4 {[%clk 0:01:23]}  Bc8 {[%clk 0:00:04]} 33. Nc5 {[%clk 0:01:22]}  g6 {[%clk 0:00:02]} 34. f4 {[%clk 0:01:23]}  h6 {[%clk 0:00:02]} 35. e5+ {[%clk 0:01:18]}  fxe5+ {[%clk 0:00:02]} 36. fxe5+ {[%clk 0:01:18]}  Ke7 {[%clk 0:00:03]} 37. a3 {[%clk 0:01:18]}  Bf5 {[%clk 0:00:00]} 38. Kc4 {[%clk 0:01:13]} 1-0


[Site "https://www.chess.com"]

[Event "Titled Tuesday Blitz October 31 Late 2023"]
[White "Kujawski, Adam"]
[Black "HeroRubiksCube"]
[WhiteFideId "1100920"]
[WhiteElo "2336"]
[BlackElo "2491"]
[Result "0-1"]
[Round "9"]
[TimeControl "180+1"]
[Date "2023.10.31"]
[WhiteClock "0:00:25"]
[BlackClock "0:00:22"]
[Board "88"]

1. d4 {[%clk 0:03:00]}  Nf6 {[%clk 0:02:58]} 2. Bf4 {[%clk 0:03:00]}  d5 {[%clk 0:02:58]} 3. e3 {[%clk 0:02:59]}  c5 {[%clk 0:02:58]} 4. c3 {[%clk 0:02:58]}  Nc6 {[%clk 0:02:56]} 5. Nd2 {[%clk 0:02:58]}  Bf5 {[%clk 0:02:55]} 6. Qb3 {[%clk 0:02:54]}  Qc8 {[%clk 0:02:47]} 7. Ngf3 {[%clk 0:02:53]}  e6 {[%clk 0:02:46]} 8. Bb5 {[%clk 0:02:51]}  Be7 {[%clk 0:02:43]} 9. Ne5 {[%clk 0:02:49]}  O-O {[%clk 0:02:40]} 10. Bxc6 {[%clk 0:02:49]}  bxc6 {[%clk 0:02:40]} 11. O-O {[%clk 0:02:48]}  Nh5 {[%clk 0:02:30]} 12. Qa4 {[%clk 0:02:35]}  Nxf4 {[%clk 0:02:16]} 13. exf4 {[%clk 0:02:34]}  Bd6 {[%clk 0:01:44]} 14. Nxc6 {[%clk 0:02:14]}  Qd7 {[%clk 0:01:27]} 15. dxc5 {[%clk 0:01:58]}  Bxc5 {[%clk 0:01:19]} 16. b4 {[%clk 0:01:51]}  Bd6 {[%clk 0:01:15]} 17. b5 {[%clk 0:01:47]}  a6 {[%clk 0:01:15]} 18. Nf3 {[%clk 0:01:21]}  axb5 {[%clk 0:01:09]} 19. Qxb5 {[%clk 0:01:22]}  Rfc8 {[%clk 0:01:01]} 20. Ncd4 {[%clk 0:01:19]}  Qxb5 {[%clk 0:00:59]} 21. Nxb5 {[%clk 0:01:19]}  Bxf4 {[%clk 0:00:59]} 22. a4 {[%clk 0:01:09]}  Bc2 {[%clk 0:00:46]} 23. g3 {[%clk 0:01:01]}  Bh6 {[%clk 0:00:38]} 24. Ra2 {[%clk 0:00:42]}  Bb3 {[%clk 0:00:30]} 25. Ra3 {[%clk 0:00:42]}  Bc4 {[%clk 0:00:29]} 26. Rfa1 {[%clk 0:00:31]}  g6 {[%clk 0:00:29]} 27. Nfd4 {[%clk 0:00:31]}  Bf8 {[%clk 0:00:29]} 28. a5 {[%clk 0:00:26]}  Bxa3 {[%clk 0:00:28]} 29. Rxa3 {[%clk 0:00:27]}  e5 {[%clk 0:00:27]} 30. Nd6 {[%clk 0:00:24]}  exd4 {[%clk 0:00:28]} 31. Nxc8 {[%clk 0:00:24]}  Rxc8 {[%clk 0:00:29]} 32. cxd4 {[%clk 0:00:25]}  Ra8 {[%clk 0:00:29]} 33. f4 {[%clk 0:00:24]}  Kf8 {[%clk 0:00:28]} 34. Kf2 {[%clk 0:00:24]}  Ke7 {[%clk 0:00:29]} 35. g4 {[%clk 0:00:24]}  Kd6 {[%clk 0:00:28]} 36. Kg3 {[%clk 0:00:25]}  Kc6 {[%clk 0:00:28]} 37. Kh4 {[%clk 0:00:25]}  Kb5 {[%clk 0:00:28]} 38. Kg5 {[%clk 0:00:24]}  Rxa5 {[%clk 0:00:21]} 39. Rxa5+ {[%clk 0:00:24]}  Kxa5 {[%clk 0:00:22]} 40. Kf6 {[%clk 0:00:24]}  Kb4 {[%clk 0:00:20]} 41. Kxf7 {[%clk 0:00:24]}  Kc3 {[%clk 0:00:20]} 42. Kg7 {[%clk 0:00:24]}  Kxd4 {[%clk 0:00:21]} 43. f5 {[%clk 0:00:24]}  gxf5 {[%clk 0:00:19]} 44. gxf5 {[%clk 0:00:25]}  Ke5 {[%clk 0:00:19]} 45. f6 {[%clk 0:00:25]}  d4 {[%clk 0:00:20]} 46. f7 {[%clk 0:00:24]}  Bxf7 {[%clk 0:00:20]} 47. Kxf7 {[%clk 0:00:25]}  d3 {[%clk 0:00:21]} 48. Kg7 {[%clk 0:00:26]}  d2 {[%clk 0:00:21]} 49. h4 {[%clk 0:00:26]}  d1=Q {[%clk 0:00:22]} 50. Kxh7 {[%clk 0:00:25]}  Qh5+ {[%clk 0:00:22]} 0-1


[Site "https://www.chess.com"]

[Event "Titled Tuesday Blitz October 31 Late 2023"]
[White "iJueles"]
[Black "Fominykh, Maria"]
[BlackFideId "4142411"]
[WhiteElo "2444"]
[BlackElo "2312"]
[Result "1-0"]
[Round "9"]
[TimeControl "180+1"]
[Date "2023.10.31"]
[WhiteClock "0:00:16"]
[BlackClock "0:00:00"]
[Board "90"]

1. d4 {[%clk 0:03:00]}  Nf6 {[%clk 0:02:59]} 2. Bg5 {[%clk 0:02:59]}  e6 {[%clk 0:02:58]} 3. Nf3 {[%clk 0:02:59]}  Be7 {[%clk 0:02:59]} 4. e3 {[%clk 0:02:59]}  b6 {[%clk 0:02:59]} 5. Bd3 {[%clk 0:02:59]}  Bb7 {[%clk 0:02:59]} 6. Nbd2 {[%clk 0:02:57]}  c5 {[%clk 0:02:58]} 7. c3 {[%clk 0:02:56]}  h6 {[%clk 0:02:55]} 8. Bf4 {[%clk 0:02:54]}  d6 {[%clk 0:02:54]} 9. O-O {[%clk 0:02:53]}  Nbd7 {[%clk 0:02:54]} 10. Bg3 {[%clk 0:02:47]}  Nh5 {[%clk 0:02:51]} 11. a4 {[%clk 0:02:45]}  Nxg3 {[%clk 0:02:50]} 12. hxg3 {[%clk 0:02:45]}  O-O {[%clk 0:02:49]} 13. a5 {[%clk 0:02:44]}  e5 {[%clk 0:02:31]} 14. Bb5 {[%clk 0:02:10]}  cxd4 {[%clk 0:02:23]} 15. exd4 {[%clk 0:02:03]}  e4 {[%clk 0:01:58]} 16. Ne1 {[%clk 0:02:02]}  bxa5 {[%clk 0:01:56]} 17. Qa4 {[%clk 0:01:53]}  Nb6 {[%clk 0:01:53]} 18. Qxa5 {[%clk 0:01:51]}  Bg5 {[%clk 0:01:46]} 19. Nb3 {[%clk 0:01:26]}  e3 {[%clk 0:01:36]} 20. f4 {[%clk 0:01:24]}  Bf6 {[%clk 0:01:35]} 21. Nf3 {[%clk 0:01:19]}  Bd5 {[%clk 0:01:26]} 22. Nc1 {[%clk 0:01:14]}  Qc8 {[%clk 0:00:53]} 23. Be2 {[%clk 0:00:57]}  Re8 {[%clk 0:00:49]} 24. Nd3 {[%clk 0:00:47]}  Qg4 {[%clk 0:00:34]} 25. Kh2 {[%clk 0:00:34]}  Qh5+ {[%clk 0:00:34]} 26. Kg1 {[%clk 0:00:34]}  Qg4 {[%clk 0:00:17]} 27. Kh2 {[%clk 0:00:34]}  Qh5+ {[%clk 0:00:16]} 28. Kg1 {[%clk 0:00:32]}  Qg6 {[%clk 0:00:15]} 29. Nb4 {[%clk 0:00:24]}  Be4 {[%clk 0:00:10]} 30. Kh2 {[%clk 0:00:20]}  d5 {[%clk 0:00:10]} 31. Ne5 {[%clk 0:00:17]}  Qf5 {[%clk 0:00:07]} 32. Bg4 {[%clk 0:00:16]}  Qh7 {[%clk 0:00:05]} 33. Bh3 {[%clk 0:00:16]}  Bf5 {[%clk 0:00:02]} 34. Rfe1 {[%clk 0:00:15]}  Bxh3 {[%clk 0:00:02]} 35. gxh3 {[%clk 0:00:16]}  Bxe5 {[%clk 0:00:00]} 36. dxe5 {[%clk 0:00:16]} 1-0


[Site "https://www.chess.com"]

[Event "Titled Tuesday Blitz October 31 Late 2023"]
[White "Souza, Gustavo Horokoski De"]
[Black "ChessLebaneseSalah"]
[WhiteFideId "2146584"]
[WhiteElo "2199"]
[BlackElo "2401"]
[Result "1/2-1/2"]
[Round "9"]
[TimeControl "180+1"]
[Date "2023.10.31"]
[WhiteClock "0:00:12"]
[BlackClock "0:00:15"]
[Board "95"]

1. c4 {[%clk 0:02:50]}  c6 {[%clk 0:02:59]} 2. e4 {[%clk 0:02:22]}  d5 {[%clk 0:02:56]} 3. exd5 {[%clk 0:02:15]}  cxd5 {[%clk 0:02:57]} 4. d4 {[%clk 0:02:15]}  Nf6 {[%clk 0:02:57]} 5. Nc3 {[%clk 0:02:14]}  Nc6 {[%clk 0:02:55]} 6. Nf3 {[%clk 0:02:13]}  Bg4 {[%clk 0:02:52]} 7. Be2 {[%clk 0:01:46]}  e6 {[%clk 0:02:47]} 8. O-O {[%clk 0:01:44]}  Be7 {[%clk 0:02:41]} 9. cxd5 {[%clk 0:01:12]}  Nxd5 {[%clk 0:02:41]} 10. h3 {[%clk 0:01:10]}  Bf5 {[%clk 0:02:32]} 11. Qb3 {[%clk 0:01:10]}  Nb6 {[%clk 0:02:23]} 12. Rd1 {[%clk 0:01:08]}  O-O {[%clk 0:02:04]} 13. Be3 {[%clk 0:01:04]}  Nb4 {[%clk 0:00:55]} 14. Rac1 {[%clk 0:00:52]}  Rc8 {[%clk 0:00:44]} 15. Ne5 {[%clk 0:00:27]}  N4d5 {[%clk 0:00:37]} 16. Bf3 {[%clk 0:00:26]}  Bf6 {[%clk 0:00:27]} 17. Nxd5 {[%clk 0:00:22]}  exd5 {[%clk 0:00:25]} 18. Nd3 {[%clk 0:00:18]}  Rxc1 {[%clk 0:00:17]} 19. Rxc1 {[%clk 0:00:19]}  Nc4 {[%clk 0:00:16]} 20. Nf4 {[%clk 0:00:12]}  Be6 {[%clk 0:00:08]} 21. a3 {[%clk 0:00:06]}  Nxe3 {[%clk 0:00:08]} 22. fxe3 {[%clk 0:00:06]}  Bg5 {[%clk 0:00:08]} 23. Nxe6 {[%clk 0:00:04]}  fxe6 {[%clk 0:00:07]} 24. Re1 {[%clk 0:00:04]}  b6 {[%clk 0:00:06]} 25. Qd3 {[%clk 0:00:05]}  Qf6 {[%clk 0:00:07]} 26. e4 {[%clk 0:00:05]}  Bh4 {[%clk 0:00:07]} 27. Rf1 {[%clk 0:00:04]}  dxe4 {[%clk 0:00:07]} 28. Qxe4 {[%clk 0:00:04]}  Bg5 {[%clk 0:00:06]} 29. Be2 {[%clk 0:00:04]}  Qe7 {[%clk 0:00:05]} 30. Rxf8+ {[%clk 0:00:04]}  Kxf8 {[%clk 0:00:06]} 31. Qf3+ {[%clk 0:00:03]}  Bf6 {[%clk 0:00:06]} 32. Qa8+ {[%clk 0:00:03]}  Kf7 {[%clk 0:00:06]} 33. Qe4 {[%clk 0:00:04]}  g6 {[%clk 0:00:06]} 34. Bc4 {[%clk 0:00:04]}  Qd6 {[%clk 0:00:06]} 35. d5 {[%clk 0:00:03]}  exd5 {[%clk 0:00:05]} 36. Bxd5+ {[%clk 0:00:04]}  Kg7 {[%clk 0:00:05]} 37. Qe6 {[%clk 0:00:04]}  Qxe6 {[%clk 0:00:05]} 38. Bxe6 {[%clk 0:00:05]}  Bxb2 {[%clk 0:00:06]} 39. a4 {[%clk 0:00:04]}  a6 {[%clk 0:00:06]} 40. Bc4 {[%clk 0:00:05]}  a5 {[%clk 0:00:06]} 41. Bb5 {[%clk 0:00:05]}  Bd4+ {[%clk 0:00:07]} 42. Kf1 {[%clk 0:00:05]}  Bc5 {[%clk 0:00:08]} 43. Ke2 {[%clk 0:00:06]}  Kf6 {[%clk 0:00:09]} 44. Kf3 {[%clk 0:00:06]}  h6 {[%clk 0:00:09]} 45. g4 {[%clk 0:00:07]}  Kg5 {[%clk 0:00:09]} 46. Kg2 {[%clk 0:00:07]}  Bd6 {[%clk 0:00:09]} 47. Bd7 {[%clk 0:00:07]}  Kh4 {[%clk 0:00:10]} 48. Bb5 {[%clk 0:00:07]}  Bc7 {[%clk 0:00:10]} 49. Bd7 {[%clk 0:00:07]}  Kg5 {[%clk 0:00:10]} 50. Bb5 {[%clk 0:00:07]}  Kf4 {[%clk 0:00:11]} 51. Bd7 {[%clk 0:00:08]}  Bd8 {[%clk 0:00:11]} 52. Be8 {[%clk 0:00:08]}  Kg5 {[%clk 0:00:11]} 53. Bb5 {[%clk 0:00:08]}  Be7 {[%clk 0:00:11]} 54. Bd7 {[%clk 0:00:09]}  h5 {[%clk 0:00:10]} 55. gxh5 {[%clk 0:00:09]}  gxh5 {[%clk 0:00:11]} 56. Bb5 {[%clk 0:00:08]}  Kf4 {[%clk 0:00:11]} 57. Bc6 {[%clk 0:00:09]}  Bf6 {[%clk 0:00:10]} 58. Bb5 {[%clk 0:00:09]}  Be5 {[%clk 0:00:10]} 59. Be8 {[%clk 0:00:10]}  Ke4 {[%clk 0:00:11]} 60. Bxh5 {[%clk 0:00:09]}  Kd4 {[%clk 0:00:12]} 61. Be8 {[%clk 0:00:10]}  Kc4 {[%clk 0:00:12]} 62. Bb5+ {[%clk 0:00:10]}  Kd4 {[%clk 0:00:12]} 63. Kf3 {[%clk 0:00:11]}  Kd5 {[%clk 0:00:12]} 64. Kg4 {[%clk 0:00:11]}  Ke6 {[%clk 0:00:13]} 65. Kg5 {[%clk 0:00:11]}  Kf7 {[%clk 0:00:12]} 66. Kf5 {[%clk 0:00:11]}  Bb2 {[%clk 0:00:12]} 67. h4 {[%clk 0:00:11]}  Kg7 {[%clk 0:00:13]} 68. h5 {[%clk 0:00:12]}  Kh6 {[%clk 0:00:13]} 69. Kg4 {[%clk 0:00:12]}  Bc3 {[%clk 0:00:13]} 70. Bc6 {[%clk 0:00:13]}  Bd4 {[%clk 0:00:13]} 71. Bb5 {[%clk 0:00:13]}  Bc5 {[%clk 0:00:14]} 72. Bc6 {[%clk 0:00:14]}  Be7 {[%clk 0:00:14]} 73. Bb5 {[%clk 0:00:15]}  Bf8 {[%clk 0:00:14]} 74. Bc6 {[%clk 0:00:12]}  Be7 {[%clk 0:00:15]} 1/2-1/2


[Site "https://www.chess.com"]

[Event "Titled Tuesday Blitz October 31 Late 2023"]
[White "Djordjevic, Dejan N"]
[Black "el_sporco"]
[WhiteFideId "913316"]
[WhiteElo "2054"]
[BlackElo "2401"]
[Result "1-0"]
[Round "9"]
[TimeControl "180+1"]
[Date "2023.10.31"]
[WhiteClock "0:00:05"]
[BlackClock "0:00:15"]
[Board "96"]

1. e4 {[%clk 0:02:47]}  e6 {[%clk 0:03:00]} 2. d3 {[%clk 0:02:47]}  d5 {[%clk 0:03:01]} 3. Nd2 {[%clk 0:02:47]}  Nf6 {[%clk 0:03:01]} 4. Ngf3 {[%clk 0:02:46]}  Be7 {[%clk 0:03:00]} 5. c3 {[%clk 0:02:45]}  O-O {[%clk 0:03:00]} 6. e5 {[%clk 0:02:43]}  Nfd7 {[%clk 0:02:59]} 7. d4 {[%clk 0:02:44]}  c5 {[%clk 0:03:00]} 8. Be2 {[%clk 0:02:41]}  Nc6 {[%clk 0:03:01]} 9. O-O {[%clk 0:02:40]}  f6 {[%clk 0:02:52]} 10. exf6 {[%clk 0:02:38]}  Bxf6 {[%clk 0:02:51]} 11. Nb3 {[%clk 0:02:36]}  cxd4 {[%clk 0:02:49]} 12. cxd4 {[%clk 0:02:33]}  e5 {[%clk 0:02:34]} 13. dxe5 {[%clk 0:02:31]}  Ndxe5 {[%clk 0:02:35]} 14. Nfd4 {[%clk 0:02:28]}  a5 {[%clk 0:02:10]} 15. Be3 {[%clk 0:02:19]}  a4 {[%clk 0:02:09]} 16. Nc5 {[%clk 0:02:18]}  Qa5 {[%clk 0:01:36]} 17. Nce6 {[%clk 0:02:11]}  Re8 {[%clk 0:01:30]} 18. Nf4 {[%clk 0:01:45]}  Bd7 {[%clk 0:01:16]} 19. Rc1 {[%clk 0:01:44]}  Rac8 {[%clk 0:01:14]} 20. Nb5 {[%clk 0:01:31]}  Ne7 {[%clk 0:00:57]} 21. Nd6 {[%clk 0:01:29]}  Rxc1 {[%clk 0:00:56]} 22. Qxc1 {[%clk 0:01:14]}  Rb8 {[%clk 0:00:48]} 23. Rd1 {[%clk 0:01:01]}  Bc6 {[%clk 0:00:29]} 24. Ne6 {[%clk 0:00:49]}  Bd7 {[%clk 0:00:20]} 25. Nc7 {[%clk 0:00:35]}  Bc6 {[%clk 0:00:20]} 26. Ne6 {[%clk 0:00:29]}  Bd7 {[%clk 0:00:19]} 27. Nf4 {[%clk 0:00:24]}  Bc6 {[%clk 0:00:18]} 28. Nh5 {[%clk 0:00:23]}  Rd8 {[%clk 0:00:14]} 29. Nxf6+ {[%clk 0:00:17]}  gxf6 {[%clk 0:00:15]} 30. Bc5 {[%clk 0:00:14]}  N7g6 {[%clk 0:00:10]} 31. Ba3 {[%clk 0:00:12]}  Qc7 {[%clk 0:00:10]} 32. Nf5 {[%clk 0:00:12]}  Qd7 {[%clk 0:00:10]} 33. Qc2 {[%clk 0:00:08]}  Qe6 {[%clk 0:00:03]} 34. Bf1 {[%clk 0:00:06]}  d4 {[%clk 0:00:03]} 35. Nxd4 {[%clk 0:00:06]}  Qd5 {[%clk 0:00:03]} 36. f4 {[%clk 0:00:05]}  Qxd4+ {[%clk 0:00:01]} 37. Rxd4 {[%clk 0:00:04]}  Rxd4 {[%clk 0:00:02]} 38. fxe5 {[%clk 0:00:05]}  fxe5 {[%clk 0:00:02]} 39. Bc5 {[%clk 0:00:04]}  Nf4 {[%clk 0:00:03]} 40. Bxd4 {[%clk 0:00:04]}  exd4 {[%clk 0:00:03]} 41. Qf5 {[%clk 0:00:03]}  Nd5 {[%clk 0:00:03]} 42. Qe6+ {[%clk 0:00:03]}  Kg7 {[%clk 0:00:03]} 43. Qe5+ {[%clk 0:00:03]}  Kg6 {[%clk 0:00:03]} 44. Qxd4 {[%clk 0:00:04]}  Nf6 {[%clk 0:00:03]} 45. Bd3+ {[%clk 0:00:04]}  Kg5 {[%clk 0:00:03]} 46. h4+ {[%clk 0:00:04]}  Kh5 {[%clk 0:00:04]} 47. Kf1 {[%clk 0:00:03]}  Ng4 {[%clk 0:00:05]} 48. Qf4 {[%clk 0:00:02]}  Kxh4 {[%clk 0:00:06]} 49. Be2 {[%clk 0:00:02]}  Bd7 {[%clk 0:00:05]} 50. Bxg4 {[%clk 0:00:02]}  Bxg4 {[%clk 0:00:06]} 51. Kf2 {[%clk 0:00:02]}  h5 {[%clk 0:00:07]} 52. g3+ {[%clk 0:00:02]}  Kh3 {[%clk 0:00:08]} 53. Qe4 {[%clk 0:00:03]}  Bd7 {[%clk 0:00:06]} 54. Qh1+ {[%clk 0:00:03]}  Kg4 {[%clk 0:00:07]} 55. Qh4+ {[%clk 0:00:03]}  Kf5 {[%clk 0:00:08]} 56. Qxh5+ {[%clk 0:00:04]}  Ke4 {[%clk 0:00:09]} 57. Qh4+ {[%clk 0:00:03]}  Kd5 {[%clk 0:00:09]} 58. Qb4 {[%clk 0:00:02]}  Bc6 {[%clk 0:00:10]} 59. g4 {[%clk 0:00:02]}  Ke6 {[%clk 0:00:11]} 60. Kg3 {[%clk 0:00:03]}  Kf6 {[%clk 0:00:11]} 61. Kf4 {[%clk 0:00:03]}  Kg6 {[%clk 0:00:12]} 62. g5 {[%clk 0:00:04]}  Kf7 {[%clk 0:00:13]} 63. Qd6 {[%clk 0:00:04]}  Kg8 {[%clk 0:00:14]} 64. Kf5 {[%clk 0:00:04]}  Kf7 {[%clk 0:00:14]} 65. g6+ {[%clk 0:00:04]}  Ke8 {[%clk 0:00:15]} 66. Kf6 {[%clk 0:00:04]}  Bd5 {[%clk 0:00:15]} 67. Qe7# {[%clk 0:00:05]} 1-0


[Site "https://www.chess.com"]

[Event "Titled Tuesday Blitz October 31 Late 2023"]
[White "Nikolova, Adriana"]
[Black "pinguino120"]
[WhiteFideId "2908689"]
[WhiteElo "2388"]
[BlackElo "2238"]
[Result "1-0"]
[Round "9"]
[TimeControl "180+1"]
[Date "2023.10.31"]
[WhiteClock "0:00:27"]
[BlackClock "0:00:10"]
[Board "100"]

1. d4 {[%clk 0:02:52]}  Nf6 {[%clk 0:02:44]} 2. Bf4 {[%clk 0:02:48]}  b6 {[%clk 0:02:39]} 3. e3 {[%clk 0:02:45]}  Bb7 {[%clk 0:02:33]} 4. Nf3 {[%clk 0:02:45]}  g6 {[%clk 0:02:32]} 5. Bd3 {[%clk 0:02:44]}  d5 {[%clk 0:02:28]} 6. Nbd2 {[%clk 0:02:40]}  Bg7 {[%clk 0:02:27]} 7. O-O {[%clk 0:02:37]}  O-O {[%clk 0:02:27]} 8. Ne5 {[%clk 0:02:38]}  c5 {[%clk 0:02:25]} 9. c3 {[%clk 0:02:38]}  Nc6 {[%clk 0:02:24]} 10. Qf3 {[%clk 0:02:33]}  Nh5 {[%clk 0:02:07]} 11. Nxc6 {[%clk 0:02:14]}  Bxc6 {[%clk 0:02:05]} 12. Be5 {[%clk 0:02:14]}  f6 {[%clk 0:02:00]} 13. Bg3 {[%clk 0:02:14]}  Nxg3 {[%clk 0:02:00]} 14. Qxg3 {[%clk 0:02:11]}  e5 {[%clk 0:01:55]} 15. dxc5 {[%clk 0:01:44]}  bxc5 {[%clk 0:01:47]} 16. e4 {[%clk 0:01:41]}  dxe4 {[%clk 0:00:56]} 17. Nxe4 {[%clk 0:01:18]}  f5 {[%clk 0:00:38]} 18. Bc4+ {[%clk 0:00:56]}  Bd5 {[%clk 0:00:37]} 19. Nd2 {[%clk 0:00:48]}  Bxc4 {[%clk 0:00:37]} 20. Nxc4 {[%clk 0:00:49]}  Qd5 {[%clk 0:00:37]} 21. b3 {[%clk 0:00:46]}  e4 {[%clk 0:00:36]} 22. Rad1 {[%clk 0:00:45]}  Qf7 {[%clk 0:00:29]} 23. Rd6 {[%clk 0:00:34]}  Rad8 {[%clk 0:00:26]} 24. Rfd1 {[%clk 0:00:34]}  Rxd6 {[%clk 0:00:26]} 25. Rxd6 {[%clk 0:00:33]}  Qe7 {[%clk 0:00:24]} 26. Qf4 {[%clk 0:00:27]}  g5 {[%clk 0:00:23]} 27. Qd2 {[%clk 0:00:26]}  Be5 {[%clk 0:00:10]} 28. Qd5+ {[%clk 0:00:27]} 1-0


[Site "https://www.chess.com"]